fUSD/lending_fUSD_20240909
["ID","MTS","AMOUNT","RATE_DAILY","PERIOD"]
[337583239,1725858632031,-155.85555883,0.00013488,2]
[337583240,1725858632041,-338.69815013,0.00013549,2]
[337583241,1725858632052,-117.30184987,0.00013549,2]
[337583242,1725858632062,-250.0,0.00013611,2]
[337583243,1725858632072,-5781.77373336,0.00013617,2]
[337583244,1725858632088,-1710.28626664,0.00013617,2]
[337583245,1725858632099,-544.0,0.00013619,2]
[337583246,1725858632109,-250.0,0.00013619,2]
[337583247,1725858632118,-300.0,0.00013623,2]
[337583248,1725858632128,-32.04231035,0.00013624,2]
[337583249,1725858632139,-1182.22768965,0.00013624,2]
[337583250,1725858632148,-1288.01528532,0.00013631,2]
[337583251,1725858632168,-1034.15471468,0.00013631,2]
[337583252,1725858632178,-2599.72,0.00013631,2]
[337583253,1725858632187,-453.65900637,0.00013645,2]
[337583254,1725858632199,-2519.10879577,0.00013645,2]
[337583255,1725858632211,-7813.34219786,0.00013645,2]
[337583256,1725858632221,-274.93,0.00013646,2]
[337583257,1725858632230,-1799.57,0.00013661,2]
[337583258,1725858632240,-153.12570855,0.00013671,2]
[337583259,1725858632251,-10.88429145,0.00013671,2]
[337583260,1725858632260,-650.46,0.00013674,2]
[337583261,1725858632270,-116.15170455,0.00013674,2]
[337583262,1725858632281,-300.0,0.00013674,2]
[337583263,1725858632293,-83.83829545,0.00013674,2]
[337583264,1725858632303,-150.0,0.00013675,2]
[337583265,1725858632313,-53.53508957,0.00013686,2]
[337583266,1725858632324,-943.76491043,0.00013686,2]
[337583267,1725858632334,-176.0,0.00013688,2]
[337583268,1725858632346,-150.0,0.00013691,2]
[337583269,1725858632357,-3142.15757078,0.00013692,2]
[337583270,1725858632369,-521.44331218,0.00013692,2]
[337583271,1725858632381,-1703.61103245,0.00013692,2]
[337583272,1725858632393,-494.47887349,0.00013692,2]
[337583273,1725858632405,-413.47322908,0.00013692,2]
[337583274,1725858632417,-615.77052,0.00013692,2]
[337583275,1725858632430,-496.77,0.00013692,2]
[337583425,1725858640303,-1248.82727493,0.00013692,2]
[337583426,1725858640318,-10512.72818709,0.00013692,2]
[337583427,1725858640327,-250.0,0.00013696,2]
[337583428,1725858640337,-176.17,0.00013699,2]
[337583430,1725858640352,-6920.36,0.00013741,2]
[337583431,1725858640362,-653.09,0.00013963,2]
[337583432,1725858640372,-220.71062823,0.00014,2]
[337583433,1725858640382,-179.5,0.00014171,2]
[337583434,1725858640394,-200.0,0.00014192,2]
[337583435,1725858640404,-876.67,0.00014192,2]
[337583436,1725858640413,-1228.98,0.000142,2]
[337583437,1725858640427,-357.54,0.00014278,2]
[337583438,1725858640438,-150.0,0.0001447,2]
[337583439,1725858640448,-8229.75,0.00014504,2]
[337583440,1725858640458,-150.0,0.00014726,2]
[337583441,1725858640468,-150.0,0.00014728,2]
[337583442,1725858640477,-150.0,0.00014737,2]
[337583443,1725858640487,-150.0,0.00014745,2]
[337583444,1725858640497,-150.0,0.00014748,2]
[337583445,1725858640507,-150.0,0.0001475,2]
[337583446,1725858640518,-150.0,0.0001475,2]
[337583447,1725858640528,-150.0,0.0001475,2]
[337583448,1725858640543,-150.0,0.00014756,2]
[337583449,1725858640552,-150.0,0.00014757,2]
[337583450,1725858640561,-150.0,0.00014761,2]
[337583451,1725858640570,-150.0,0.00014766,2]
[337583453,1725858640579,-150.0,0.00014769,2]
[337583454,1725858640589,-150.0,0.00014773,2]
[337583455,1725858640598,-150.0,0.00014777,2]
[337583456,1725858640608,-150.0,0.00014781,2]
[337583457,1725858640618,-150.0,0.00014781,2]
[337583458,1725858640628,-150.0,0.00014783,2]
[337583459,1725858640638,-150.0,0.00014784,2]
[337583460,1725858640648,-150.0,0.00014786,2]
[337583461,1725858640658,-150.0,0.00014788,2]
[337583462,1725858640667,-150.0,0.00014791,2]
[337583463,1725858640677,-150.0,0.00014791,2]
[337583464,1725858640686,-150.0,0.00014792,2]
[337583465,1725858640696,-150.0,0.00014796,2]
[337583466,1725858640706,-150.0,0.00014797,2]
[337583467,1725858640715,-150.0,0.00014798,2]
[337583468,1725858640726,-150.0,0.00014798,2]
[337583469,1725858640737,-752.34,0.000148,2]
[337583470,1725858640747,-1547.0,0.000148,2]
[337583471,1725858640756,-1261.0,0.000148,2]
[337583472,1725858640766,-672.829,0.000148,2]
[337583473,1725858640775,-150.0,0.00014801,2]
[337583474,1725858640787,-150.0,0.00014804,2]
[337583475,1725858640796,-150.0,0.0001481,2]
[337583476,1725858640806,-150.0,0.00014812,2]
[337583477,1725858640815,-150.0,0.00014821,2]
[337583478,1725858640825,-150.0,0.00014822,2]
[337583479,1725858640834,-150.0,0.00014823,2]
[337583480,1725858640843,-150.0,0.00014831,2]
[337583481,1725858640853,-150.0,0.00014833,2]
[337583482,1725858640863,-150.0,0.00014834,2]
[337583483,1725858640873,-150.0,0.00014836,2]
[337583484,1725858640882,-150.0,0.00014836,2]
[337583485,1725858640891,-150.0,0.00014849,2]
[337583486,1725858640901,-150.0,0.00014851,2]
[337583487,1725858640910,-150.0,0.00014851,2]
[337583488,1725858640919,-150.0,0.00014851,2]
[337583489,1725858640928,-150.0,0.00014853,2]
[337583490,1725858640938,-150.0,0.00014858,2]
[337583491,1725858640947,-150.0,0.00014859,2]
[337583492,1725858640956,-150.0,0.0001486,2]
[337583493,1725858640966,-150.0,0.0001486,2]
[337583494,1725858640975,-150.0,0.00014874,2]
[337583495,1725858640984,-150.0,0.00014876,2]
[337583496,1725858640994,-150.0,0.00014877,2]
[337583497,1725858641003,-150.0,0.0001488,2]
[337583498,1725858641012,-150.0,0.0001488,2]
[337583499,1725858641022,-150.0,0.00014884,2]
[337583500,1725858641031,-150.0,0.00014884,2]
[337583501,1725858641042,-150.0,0.00014886,2]
[337583502,1725858641051,-150.0,0.00014886,2]
[337583503,1725858641060,-150.0,0.00014886,2]
[337583504,1725858641070,-150.0,0.00014887,2]
[337583505,1725858641079,-709.70397437,0.00014889,2]
[337583506,1725858641088,-150.0,0.0001489,2]
[337583507,1725858641097,-150.0,0.00014892,2]
[337583508,1725858641106,-150.0,0.00014892,2]
[337583509,1725858641116,-175.98234,0.00014893,2]
[337583510,1725858641125,-150.0,0.00014894,2]
[337583511,1725858641135,-150.0,0.00014894,2]
[337583512,1725858641145,-150.0,0.00014895,2]
[337583513,1725858641154,-150.0,0.00014896,2]
[337583514,1725858641163,-175.98233999,0.000149,2]
[337583515,1725858641173,-599.0,0.000149,2]
[337583516,1725858641182,-150.0,0.000149,2]
[337583517,1725858641191,-161.95141977,0.000149,2]
[337583518,1725858641201,-548.54143151,0.000149,2]
[337583519,1725858641211,-3094.48276505,0.000149,2]
[337583520,1725858641220,-150.0,0.00014903,2]
[337583521,1725858641229,-150.0,0.00014904,2]
[337583522,1725858641238,-150.0,0.00014904,2]
[337583523,1725858641248,-150.0,0.0001491,2]
[337583524,1725858641257,-150.0,0.00014914,2]
[337583525,1725858641267,-150.0,0.00014921,2]
[337583526,1725858641276,-150.0,0.00014923,2]
[337583527,1725858641287,-420.0,0.0001493,2]
[337583528,1725858641298,-150.0,0.00014932,2]
[337583529,1725858641312,-150.0,0.00014935,2]
[337583530,1725858641321,-150.0,0.00014935,2]
[337583531,1725858641331,-150.0,0.00014936,2]
[337583532,1725858641341,-150.0,0.00014937,2]
[337583533,1725858641354,-150.0,0.00014941,2]
[337583534,1725858641364,-150.0,0.00014946,2]
[337583535,1725858641373,-150.0,0.00014948,2]
[337583536,1725858641382,-150.0,0.00014953,2]
[337583537,1725858641392,-150.0,0.00014954,2]
[337583538,1725858641401,-150.0,0.00014954,2]
[337583539,1725858641411,-150.0,0.00014957,2]
[337583540,1725858641422,-150.0,0.00014959,2]
[337583541,1725858641431,-150.0,0.00014959,2]
[337583542,1725858641441,-150.0,0.00014968,2]
[337583543,1725858641450,-500.0,0.00014973,2]
[337583544,1725858641460,-500.0,0.00014973,2]
[337583545,1725858641470,-500.0,0.00014973,2]
[337583546,1725858641479,-3984.51974535,0.00014978,3]
[337583547,1725858641489,-19922.5987267,0.0001498,3]
[337583548,1725858641498,-150.72,0.0001498,2]
[337583549,1725858641508,-150.0,0.00014983,2]
[337583550,1725858641518,-150.0,0.00014983,2]
[337583551,1725858641528,-150.0,0.00014984,2]
[337583552,1725858641539,-150.0,0.00014985,2]
[337583553,1725858641548,-150.0,0.00014987,2]
[337583554,1725858641557,-150.0,0.00014988,2]
[337583555,1725858641567,-79690.394907,0.00014988,3]
[337583556,1725858641576,-150.0,0.00014989,2]
[337583557,1725858641586,-5163.45453499,0.0001499,3]
[337583558,1725858641598,-33457.7471038,0.0001499,3]
[337583559,1725858641610,-3955.01642289,0.0001499,3]
[337583560,1725858641621,-22033.27718853,0.0001499,3]
[337583561,1725858642068,-1167.56978197,0.0001499,3]
[337583562,1725858642081,-7583.49288334,0.0001499,3]
[337583563,1725858642093,-6344.51725904,0.0001499,3]
[337583564,1725858642105,-19907.91845914,0.0001499,3]
[337583565,1725858642116,-3375.85877141,0.0001499,3]
[337583566,1725858642128,-4183.97458834,0.0001499,3]
[337583567,1725858642139,-19137.89899619,0.0001499,3]
[337583568,1725858642153,-515.28705452,0.0001499,3]
[337583569,1725858642166,-1134.70787623,0.0001499,3]
[337583570,1725858642179,-709.08266212,0.0001499,3]
[337583571,1725858642191,-3861.57904239,0.0001499,3]
[337583572,1725858642205,-2489.57862817,0.0001499,3]
[337583573,1725858642216,-2234.28306925,0.0001499,3]
[337583574,1725858642228,-6456.66294103,0.0001499,3]
[337583575,1725858642239,-4745.94753637,0.0001499,3]
[337583576,1725858642251,-10057.58,0.0001499,3]
[337583577,1725858642266,-765.98151754,0.0001499,3]
[337583578,1725858642277,-1043.64469996,0.0001499,3]
[337583579,1725858642366,-540.18000005,0.0001499,3]
[337583580,1725858642377,-32808.21967303,0.0001499,3]
[337583581,1725858642389,-17049.04648691,0.0001499,3]
[337583582,1725858642400,-19988.33233355,0.0001499,3]
[337583583,1725858642412,-347.78074878,0.0001499,3]
[337583584,1725858642429,-1079.800005,0.0001499,3]
[337583585,1725858642441,-307.46014093,0.0001499,3]
[337583586,1725858642452,-5520.4318433,0.0001499,3]
[337583587,1725858642464,-11461.74853337,0.0001499,3]
[337583588,1725858642475,-322.85018007,0.0001499,3]
[337583589,1725858642495,-503.4787228,0.0001499,3]
[337583590,1725858642507,-707.29759084,0.0001499,3]
[337583591,1725858642519,-321.53092787,0.0001499,3]
[337583592,1725858642531,-416.47603396,0.0001499,3]
[337583593,1725858642548,-6174.05112222,0.0001499,3]
[337583594,1725858642559,-3593.08737091,0.0001499,3]
[337583595,1725858642993,-709.70397436,0.0001489,2]
[337583596,1725858643003,-15263.38899093,0.0001499,3]
[337583597,1725858643052,-935.898057,0.0001499,3]
[337583598,1725858643108,-7014.83138349,0.0001499,3]
[337583599,1725858643120,-456.4016894,0.0001499,3]
[337583600,1725858643131,-3939.92439593,0.0001499,3]
[337583601,1725858643142,-1364.2199562,0.0001499,3]
[337583603,1725858643642,-74136.06139294,0.0001499,3]
[337583604,1725858643651,-150.72,0.0001499,2]
[337583605,1725858643660,-150.72,0.0001499,2]
[337583606,1725858643670,-150.0,0.00014993,2]
[337583607,1725858643680,-150.0,0.00014995,2]
[337583608,1725858643689,-162618.06788926,0.00014998,2]
[337583609,1725858643699,-130111.85076496,0.00015,2]
[337583610,1725858643710,-24054.79207599,0.00015,2]
[337583611,1725858643721,-422.35353969,0.00015,2]
[337583612,1725858643733,-2257.25906638,0.00015,2]
[337583613,1725858643744,-4295.5544997,0.00015,2]
[337583625,1725858646118,-320.31531078,0.00014893,2]
[337583626,1725858646128,-3017.57845705,0.00015,2]
[337583627,1725858646141,-1767.27713473,0.00015,2]
[337583628,1725858646153,-1675.2,0.00015,2]
[337583629,1725858646178,-321.56691331,0.00015,2]
[337583630,1725858646547,-7558.86937272,0.00015,2]
[337583631,1725858646575,-14993.26991951,0.00015,2]
[337583634,1725858823951,750.0,0.00011,2]
[337583635,1725858849986,500.0,0.00011164,2]
[337583636,1725858888734,400.0,0.00028,120]
[337583637,1725858896697,500.0,0.00011164,2]
[337583641,1725859063855,154.82,0.00010959,2]
[337583642,1725859133211,2091.95,0.00012,2]
[337583643,1725859136960,300.0,0.00012502,2]
[337583646,1725859232078,663.87,0.00011709,2]
[337583647,1725859363144,-800.0,0.00013,2]
[337583655,1725859508141,24200.0,0.00013,2]
[337583656,1725859508169,25000.0,0.00013,2]
[337583657,1725859508195,25000.0,0.00013,2]
[337583658,1725859508222,25000.0,0.00013,2]
[337583659,1725859508249,25000.0,0.00013,2]
[337583660,1725859508275,25000.0,0.00013,2]
[337583661,1725859508303,25000.0,0.00013,2]
[337583662,1725859508330,25000.0,0.00013,2]
[337583663,1725859508362,25000.0,0.00013,2]
[337583664,1725859508390,25000.0,0.00013,2]
[337583665,1725859529743,28217.24,0.000101,2]
[337583666,1725859529770,23426.00028878,0.000101,2]
[337583688,1725859551472,651.51992267,0.00010988,2]
[337583689,1725859554830,1042.6668699,6.94e-05,2]
[337583692,1725859631282,753.14939819,0.000123,2]
[337583696,1725859712043,-4212.70542555,0.00012999,2]
[337583697,1725859712070,-500.0,0.00012999,2]
[337583698,1725859712533,-500.0,0.00012999,2]
[337583699,1725859712560,-500.0,0.00012999,2]
[337583700,1725859712586,-500.0,0.00012999,2]
[337583701,1725859712613,-500.0,0.00012999,2]
[337583702,1725859712641,-393.77421558,0.00012999,2]
[337583703,1725859712669,-182.02627401,0.00012999,2]
[337583704,1725859712701,-317.97372599,0.00012999,2]
[337583705,1725859712729,-500.0,0.00012999,2]
[337583706,1725859712757,-335.62717409,0.00012999,2]
[337583707,1725859712785,-500.0,0.00012999,2]
[337583708,1725859712812,-150.0,0.00012999,2]
[337583709,1725859712842,-440.59789029,0.00013,2]
[337583710,1725859712875,-7288.50591514,0.00013,2]
[337583711,1725859712908,-7288.50591514,0.00013,2]
[337583712,1725859712948,-7288.50591514,0.00013,2]
[337583714,1725859732595,667.17,0.00011522,2]
[337583715,1725859736606,-499.99999999,0.000129,2]
[337583716,1725859748829,167.42,0.00010959,2]
[337583720,1725859761231,-223.2337265,0.000129,2]
[337583721,1725859761259,-276.7662735,0.000129,2]
[337583722,1725859786437,-43.88622902,0.000129,2]
[337583723,1725859786465,-456.11377098,0.00012973,2]
[337583724,1725859811672,-363.55146632,0.000129,2]
[337583725,1725859811700,-168.68225784,0.000129,2]
[337583726,1725859811727,-54.10302372,0.00012973,2]
[337583727,1725859811753,-500.0,0.00012973,2]
[337583728,1725859811781,-180.24730742,0.00012999,2]
[337583732,1725859832212,-365.69428766,0.000129,2]
[337583735,1725859832222,-152.31,0.0001299,2]
[337583737,1725859832231,-119.75269258,0.00012999,2]
[337583738,1725859832241,-2948.35568976,0.00013,2]
[337583739,1725859832252,-1230.01759857,0.00013,2]
[337583740,1725859832263,-2514.72665498,0.00013,2]
[337583741,1725859832274,-22916.49869489,0.00013,2]
[337583742,1725859832285,-929.99995,0.00013,2]
[337583743,1725859832297,-3302.4465138,0.00013,2]
[337583744,1725859832335,-453445.14236551,0.00013,2]
[337583745,1725859832398,-1415.43626018,0.00013,2]
[337583746,1725859832409,-1679.06194262,0.00013,2]
[337583747,1725859832461,-1306.0,0.00013,2]
[337583748,1725859832472,-371993.40803002,0.00013,2]
[337583749,1725859832484,-2722.12504729,0.00013,2]
[337583750,1725859832495,-9835.58180308,0.00013,2]
[337583775,1725859838323,-6731.3469687,0.00013,2]
[337583776,1725859838337,-1495.67112458,0.00013,2]
[337583777,1725859838350,-1605.98,0.00013,2]
[337583778,1725859838361,-2200.0,0.00013,2]
[337583779,1725859838372,-16741.38379213,0.00013,2]
[337583780,1725859838385,-712.43225591,0.00013,2]
[337583781,1725859838397,-686.50000001,0.00013,2]
[337583782,1725859838409,-1116.50326628,0.00013,2]
[337583783,1725859838420,-2734.46671332,0.00013,2]
[337583784,1725859838433,-6157.08148719,0.00013,2]
[337583785,1725859838449,-2549.55900004,0.00013,2]
[337583786,1725859838460,-4236.72490095,0.00013,2]
[337583787,1725859838477,-484.43905378,0.00013,2]
[337583816,1725859840240,-4285.7862628,0.00013,2]
[337583817,1725859840305,-500.0,0.00013,2]
[337583818,1725859840317,-462.7030002,0.00013,2]
[337583819,1725859840367,-3470.18292958,0.00013,2]
[337583820,1725859840379,-5568.99582229,0.00013,2]
[337583821,1725859840391,-291.88343201,0.00013,2]
[337583822,1725859840429,-374.07477111,0.00013,2]
[337583823,1725859840504,-5719.53545259,0.00013,2]
[337583824,1725859840516,-1107.15450571,0.00013,2]
[337583825,1725859840527,-547.15088722,0.00013,2]
[337583826,1725859840538,-338.76881425,0.00013,2]
[337583853,1725859843263,-401.47892665,0.00013,2]
[337583854,1725859843274,-599.32026793,0.00013,2]
[337583855,1725859843286,-1433.76304378,0.00013,2]
[337583856,1725859843308,-2564.133,0.00013,2]
[337583857,1725859843364,-879.178145,0.00013,2]
[337583865,1725859844259,-1217.50675063,0.00013,2]
[337583866,1725859844271,-1687928.46611656,0.00013,2]
[337583867,1725859844282,-2086041.03197912,0.00013,2]
[337583868,1725859844293,-3376.707924,0.00013,2]
[337583869,1725859844304,-508.350001,0.00013,2]
[337583876,1725859846317,-433.9560001,0.00013,2]
[337583877,1725859846381,-3979.28148486,0.00013,2]
[337583878,1725859846393,-155481.6097326,0.00013,2]
[337583879,1725859846405,-1020.39429461,0.00013,2]
[337583880,1725859846416,-500.0,0.00013,2]
[337583881,1725859846427,-480.34,0.00013,2]
[337583882,1725859846444,-1588.49274947,0.00013,2]
[337583883,1725859846507,-695.19249147,0.00013,2]
[337583884,1725859846570,-285.56665977,0.00013,2]
[337583885,1725859846581,-608.35712949,0.00013,2]
[337583886,1725859846639,-1143.40519,0.00013,2]
[337583887,1725859846650,-1143.40519,0.00013,2]
[337583889,1725860248746,152.21,0.00010959,2]
[337583890,1725860271763,500.0,0.00012162,2]
[337583891,1725860294634,671.53,0.00010291,2]
[337583892,1725860317724,219.2,0.00012209,2]
[337583894,1725860465759,213.2,0.00012047,2]
[337583895,1725860500093,250.0,0.00011987,2]
[337583896,1725860542637,250.0,0.00012048,2]
[337583897,1725860558585,4390.19,0.00012129,2]
[337583898,1725860581849,187.54,0.00012029,2]
[337583899,1725860588986,23870.0,0.00012033,2]
[337583900,1725860625485,158.59,0.00012155,2]
[337583901,1725860627340,750.0,0.00011,2]
[337583902,1725860629745,540.36,0.00012154,2]
[337583903,1725860663832,1463.91,0.0001211,2]
[337583904,1725860663902,250.0,0.0001211,2]
[337583906,1725860697057,171.98,0.00012235,2]
[337583937,1725860780350,170.48,0.0001223,2]
[337583938,1725860780567,170.48,0.00012242,2]
[337583939,1725860780777,170.48,0.00012255,2]
[337583940,1725860781018,170.48,0.00012267,2]
[337583941,1725860781218,170.48,0.00012279,2]
[337583942,1725860781426,170.48,0.00012291,2]
[337583944,1725860804088,435.2,0.00012487,2]
[337583945,1725860804417,350.0,0.00012501,2]
[337583947,1725860833839,150.5,0.00013176,30]
[337583948,1725860834332,150.5,0.00013166,30]
[337583949,1725860875121,710.51,0.00010271,2]
[337583950,1725860925851,-710.51,0.00012535,2]
[337583951,1725860925882,-150.0,0.00012548,2]
[337583952,1725860925911,-564.8,0.00012551,2]
[337583953,1725860925939,-4672.83,0.00012617,2]
[337583954,1725860925967,-205.93,0.00012734,2]
[337583955,1725860925998,-1511.17143899,0.000129,2]
[337583956,1725860926031,-7815.24143899,0.000129,2]
[337583957,1725860926062,-1994.12152202,0.000129,2]
[337583958,1725860926089,-64.18936307,0.000129,2]
[337583959,1725860930646,10614.223,0.00012448,2]
[337583960,1725860936378,161.27,0.00010959,2]
[337583961,1725860943585,300.0,0.00012501,2]
[337583962,1725860976114,-898.63031368,0.00012735,2]
[337583963,1725860976142,-167.49464189,0.000129,2]
[337583964,1725860976171,-3412.31645248,0.000129,2]
[337583965,1725860976199,-1191.85076667,0.000129,2]
[337583966,1725860976230,-179.69619971,0.000129,2]
[337583967,1725860976256,-321.53572885,0.000129,2]
[337583986,1725861031512,-209.6,0.00012817,2]
[337583988,1725861031526,-222.39973743,0.000129,2]
[337583989,1725861031538,-188.652,0.00012973,2]
[337583990,1725861031551,-500.0,0.00012973,2]
[337583991,1725861031564,-416.04123546,0.00012973,2]
[337583992,1725861031580,-83.95876454,0.00012973,2]
[337583993,1725861031593,-150.0,0.00012989,2]
[337583994,1725861031605,-6605.18035398,0.0001299,2]
[337583995,1725861031618,-500.0,0.00012999,2]
[337583996,1725861031630,-500.0,0.00012999,2]
[337583997,1725861031642,-216.09865157,0.00012999,2]
[337583998,1725861031654,-1199.91918685,0.00012999,3]
[337584000,1725861031666,-1199.91918686,0.00012999,3]
[337584002,1725861031678,-499.99,0.00012999,2]
[337584003,1725861031691,-164048.56671682,0.00013,2]
[337584004,1725861031706,-7913.24401364,0.00013,2]
[337584005,1725861031721,-282802.20353435,0.00013,2]
[337584006,1725861031735,-82982.30087,0.00013,2]
[337584007,1725861031759,-460.59415606,0.00013,2]
[337584008,1725861031774,-3235.93611025,0.00013,2]
[337584009,1725861037392,-158.84360261,0.000129,2]
[337584010,1725861037406,-153.53,0.0001299,2]
[337584011,1725861037420,-31790.54807722,0.00013,2]
[337584012,1725861037436,-427.20419193,0.00013,2]
[337584013,1725861037452,-10981.48662311,0.00013,2]
[337584014,1725861037528,-923.68238207,0.00013,2]
[337584015,1725861037544,-686.87571883,0.00013,2]
[337584016,1725861037560,-449744.05983096,0.00013,2]
[337584017,1725861037575,-728127.08022538,0.00013,2]
[337584018,1725861037589,-2843.08552489,0.00013,2]
[337584019,1725861037602,-188361.64090002,0.00013,2]
[337584020,1725861037617,-599.055,0.00013,2]
[337584021,1725861037632,-695.60287822,0.00013,2]
[337584022,1725861037647,-1332.05846622,0.00013,2]
[337584023,1725861037663,-623.44199861,0.00013,2]
[337584024,1725861037678,-3733.51914188,0.00013,2]
[337584056,1725861040055,-500.0,0.00013,2]
[337584057,1725861040066,-4564.99427688,0.00013,2]
[337584058,1725861040078,-419.77238971,0.00013,2]
[337584059,1725861040089,-1656.58520388,0.00013,2]
[337584060,1725861040100,-9681.60895399,0.00013,2]
[337584061,1725861040245,-941.57651615,0.00013,2]
[337584062,1725861040255,-1668.74365839,0.00013,2]
[337584063,1725861040266,-9599.89447516,0.00013,2]
[337584064,1725861040278,-1216.15843688,0.00013,2]
[337584065,1725861040289,-1025.93705418,0.00013,2]
[337584066,1725861040300,-1594.44684523,0.00013,2]
[337584067,1725861040314,-1819.20996264,0.00013,2]
[337584068,1725861040325,-607.64675005,0.00013,2]
[337584069,1725861040340,-3730.46532221,0.00013,2]
[337584070,1725861040443,-1975.032,0.00013,2]
[337584071,1725861040454,-38845.77453441,0.00013,2]
[337584072,1725861040464,-9096.64373114,0.00013,2]
[337584073,1725861040476,-8947.21879473,0.00013,2]
[337584074,1725861040487,-8943.78386462,0.00013,2]
[337584075,1725861040498,-9077.54866152,0.00013,2]
[337584076,1725861040509,-8943.84023489,0.00013,2]
[337584077,1725861040520,-7971.90000001,0.00013,2]
[337584078,1725861040531,-477396.99140572,0.00013,2]
[337584079,1725861040541,-26941.28639219,0.00013,2]
[337584080,1725861040552,-339709.86079407,0.00013,2]
[337584081,1725861040563,-1531.85830089,0.00013,2]
[337584082,1725861040574,-1180.22303273,0.00013,2]
[337584083,1725861040586,-548.10622179,0.00013,2]
[337584084,1725861040596,-699.78547114,0.00013,2]
[337584085,1725861040607,-1424.0,0.00013,2]
[337584086,1725861040619,-276.91061512,0.00013,2]
[337584087,1725861040631,-1003.50055156,0.00013,2]
[337584092,1725861043592,-177026.78290449,0.00013,2]
[337584093,1725861043601,-200.54154445,0.00013,2]
[337584094,1725861043610,-31116.852,0.00013,2]
[337584095,1725861043619,-2000.0,0.00013,2]
[337584096,1725861043629,-1425.09908,0.00013,2]
[337584097,1725861043638,-422.24,0.00013096,2]
[337584098,1725861043647,-422.24,0.00013096,2]
[337584099,1725861043655,-422.24,0.00013096,2]
[337584100,1725861043674,-422.24,0.00013096,2]
[337584101,1725861043685,-420.54,0.00013096,2]
[337584102,1725861043695,-1371.54696637,0.00013122,2]
[337584103,1725861043704,-321.5357288,0.0001315,2]
[337584104,1725861043713,-200.0,0.00013176,2]
[337584105,1725861043723,-158.84360256,0.00013186,2]
[337584106,1725861043733,-1371.54696637,0.00013344,2]
[337584107,1725861043742,-150.0,0.0001337,2]
[337584108,1725861043752,-150.0,0.0001337,2]
[337584109,1725861043761,-150.0,0.0001337,2]
[337584110,1725861043773,-150.0,0.0001337,2]
[337584111,1725861043783,-150.0,0.0001337,2]
[337584112,1725861043793,-150.0,0.0001337,2]
[337584113,1725861043807,-150.0,0.0001337,2]
[337584114,1725861043818,-150.0,0.0001337,2]
[337584115,1725861043828,-150.0,0.0001337,2]
[337584116,1725861043837,-150.0,0.0001337,2]
[337584117,1725861043847,-150.0,0.0001337,2]
[337584118,1725861043856,-150.0,0.0001337,2]
[337584119,1725861043866,-150.0,0.0001337,2]
[337584120,1725861043875,-176.0,0.00013378,2]
[337584121,1725861043885,-321.5357288,0.000134,2]
[337584122,1725861043895,-150.0,0.000134,2]
[337584123,1725861043904,-150.0,0.00013456,2]
[337584124,1725861043913,-1371.54696637,0.00013567,2]
[337584125,1725861043923,-321.5357288,0.0001365,2]
[337584126,1725861043932,-168.81,0.00013699,2]
[337584127,1725861043941,-219.2,0.00013735,2]
[337584128,1725861043951,-1371.54696637,0.00013789,2]
[337584129,1725861043960,-3984.5197455,0.000138,3]
[337584130,1725861043970,-293.64,0.00013831,2]
[337584131,1725861043980,-150.0,0.00013831,2]
[337584132,1725861043989,-153.04,0.00013831,2]
[337584133,1725861044000,-150.0,0.00013831,2]